bitfinex/quotes_SOLUSD_20241125
["timestamp","ask_amount","ask_price","bid_price","bid_amount"]
[1732498929474,10.0,247.56,247.55,26.200584]
[1732498929686,19.5,247.59,247.55,26.200584]
[1732498929975,9.5,247.56,247.55,26.200584]
[1732498931390,9.5,247.58,247.57,46.604284]
[1732498931697,9.5,247.58,247.57,54.81012151]
[1732498931900,9.5,247.58,247.57,46.604284]
[1732498932199,9.5,247.58,247.57,54.81012151]
[1732498933096,9.5,247.58,247.54,6.0594]
[1732498933097,9.5,247.38,247.36,2.8298]
[1732498933289,136.5,247.68,247.24,14.1562]
[1732498933290,9.5,247.32,247.29,8.20583751]
[1732498933595,136.5,247.67,247.25,2.8311]
[1732498933596,10.0,247.28,247.27,8.20583751]
[1732498933803,19.5,247.28,247.27,8.20583751]
[1732498934095,26.3581,247.42,247.25,2.8311]
[1732498934096,10.0,247.26,247.25,2.8311]
[1732498934980,9.5,247.18,247.08,0.5]
[1732498935297,19.5,247.18,247.17,8.20583751]
[1732498935476,10.0,247.2,247.17,8.20583751]
[1732498935797,10.0,247.2,247.19,8.20583751]
[1732498936186,10.0,247.2,247.19,11.03763751]
[1732498936386,10.0,247.2,247.19,2.8318]
[1732498937610,10.0,247.2,247.19,26.608684]
[1732498940177,10.0,247.22,247.19,26.608684]
[1732498940379,10.0,247.22,247.21,56.94327989]
[1732498940782,10.0,247.22,247.21,43.776884]
[1732498941195,10.0,247.22,247.21,26.608484]
[1732498941487,10.0,247.19,247.18,15.99829589]
[1732498941803,10.0,247.19,247.18,2.8319]
[1732498942388,10.0,247.15,247.14,13.16639589]
[1732498942906,10.0,247.15,247.14,36.94327989]
[1732498944111,10.0,247.15,247.14,13.16639589]
[1732498945300,10.0,247.15,247.14,36.94327989]
[1732498950294,15.2399,247.25,247.14,36.94327989]
[1732498950609,15.2399,247.25,247.18,13.16639589]
[1732498951093,15.2399,247.25,247.16,13.16639589]
[1732498951494,15.2399,247.25,247.17,2.832]
[1732498952600,15.2399,247.25,247.2,23.776884]
[1732498953594,15.2399,247.25,247.2,26.608484]
[1732498954010,10.0,247.3,247.2,26.608484]
[1732498954201,10.0,247.3,247.2,39.77487989]
[1732498956317,10.0,247.3,247.2,34.83701796]
[1732498957318,10.0,247.31,247.2,34.83701796]
[1732498957613,20.0,247.35,247.24,8.22853396]
[1732498957938,20.0,247.35,247.25,32.00541796]
[1732498958232,20.0,247.35,247.25,23.776884]
[1732498958803,10.0,247.35,247.27,23.776884]
[1732498959420,20.0,247.35,247.27,23.776884]
[1732498959628,20.0,247.35,247.26,23.776884]
[1732498960519,20.0,247.35,247.26,2.8309]
[1732498960698,20.0,247.37,247.27,23.776884]
[1732498961317,10.0,247.37,247.27,23.776884]
[1732498962719,10.0,247.37,247.29,23.776884]
[1732498963109,10.0,247.41,247.31,23.776884]
[1732498963304,10.0,247.44,247.34,23.776884]
[1732498963518,10.0,247.45,247.34,23.776884]
[1732498964121,10.0,247.45,247.36,23.776884]
[1732498965023,20.0,247.44,247.34,33.682184]
[1732498965824,20.0,247.44,247.34,41.91071796]
[1732498966515,10.0,247.43,247.34,41.91071796]
[1732498968520,10.0,247.43,247.34,26.606984]
[1732498968721,30.0,247.44,247.34,26.606984]
[1732498969138,10.0,247.48,247.34,34.83551796]
[1732498969320,10.0,247.48,247.37,23.776884]
[1732498969623,20.0,247.47,247.37,23.776884]
[1732498969934,20.0,247.47,247.35,23.776884]
[1732498970432,10.0,247.45,247.36,2.8298]
[1732498970725,10.0,247.45,247.37,23.776884]
[1732498971121,10.0,247.43,247.35,23.776884]
[1732498971319,20.0,247.41,247.32,2.8302]
[1732498972035,20.0,247.43,247.32,2.8302]
[1732498972247,20.0,247.41,247.32,2.8302]
[1732498972612,20.0,247.45,247.34,23.776884]
[1732498972812,20.0,247.42,247.34,23.776884]
[1732498973917,20.0,247.42,247.36,23.776884]
[1732498974119,20.0,247.44,247.36,23.776884]
[1732498974325,10.0,247.47,247.36,32.00541796]
[1732498974535,10.0,247.5,247.4,8.22853396]
[1732498974733,10.0,247.52,247.41,23.776884]
[1732498974943,10.0,247.53,247.43,23.776884]
[1732498975115,10.0,247.54,247.43,23.776884]
[1732498975314,20.0,247.54,247.43,23.776884]
[1732498975648,20.0,247.54,247.45,23.776884]
[1732498975810,10.0,247.54,247.45,23.776884]
[1732498976739,20.0,247.51,247.45,23.776884]
[1732498977316,20.0,247.51,247.46,23.776884]
[1732498977535,10.0,247.54,247.46,23.776884]
[1732498977839,10.0,247.53,247.46,23.776884]
[1732498979636,20.0,247.52,247.46,26.605584]
[1732498981041,20.0,247.52,247.46,23.776884]
[1732498981218,20.0,247.52,247.45,23.776884]
[1732498981610,10.0,247.55,247.45,23.776884]
[1732498982438,10.0,247.52,247.43,26.605884]
[1732498982647,10.0,247.52,247.41,26.606084]
[1732498982648,20.0,247.52,247.41,26.606084]
[1732498983129,10.0,247.52,247.41,26.606084]
[1732498983436,20.0,247.51,247.43,23.776884]
[1732498983819,20.0,247.53,247.43,23.776884]
[1732498984020,10.0,247.56,247.47,23.776884]
[1732498984419,10.0,247.57,247.49,23.776884]
[1732498985315,10.0,247.56,247.45,23.776884]
[1732498985537,10.0,247.54,247.44,2.8288]
[1732498986126,10.0,247.54,247.44,11.05733396]
[1732498986331,20.0,247.57,247.44,11.05733396]
[1732498986537,20.0,247.54,247.46,8.22853396]
[1732498986722,20.0,247.54,247.47,23.776884]
[1732498987141,20.0,247.56,247.47,23.776884]
[1732498987325,30.0,247.56,247.47,23.776884]
[1732498987534,30.0,247.56,247.45,23.776884]
[1732498987831,10.0,247.55,247.45,23.776884]
[1732498988224,10.0,247.55,247.47,23.776884]
[1732498988632,20.0,247.56,247.47,23.776884]
[1732498988831,10.0,247.55,247.47,23.776884]
[1732498989347,10.0,247.55,247.45,26.605684]
[1732498989747,20.0,247.56,247.46,8.22853396]
[1732498989929,20.0,247.56,247.47,23.776884]
[1732498990650,20.0,247.56,247.49,23.776884]
[1732498991424,20.0,247.56,247.47,23.776884]
[1732498991620,20.0,247.56,247.47,26.605484]
[1732498991840,20.0,247.61,247.47,26.605484]
[1732498992036,20.0,247.58,247.47,26.605484]
[1732498992235,20.0,247.58,247.48,8.22853396]
[1732498992435,20.0,247.58,247.49,23.776884]
[1732498992637,20.0,247.6,247.49,23.776884]
[1732498992831,20.0,247.6,247.5,8.22853396]
[1732498993038,30.0,247.6,247.51,23.776884]
[1732498993234,20.0,247.6,247.51,23.776884]
[1732498993436,30.0,247.6,247.52,2.828]
[1732498993649,30.0,247.58,247.51,23.776884]
[1732498993960,10.0,247.55,247.42,8.22853396]
[1732498994128,10.0,247.54,247.42,8.22853396]
[1732498994332,10.0,247.55,247.42,8.22853396]
[1732498994742,10.0,247.54,247.42,8.22853396]
[1732498995247,10.0,247.54,247.43,2.829]
[1732498995557,10.0,247.52,247.43,2.829]
[1732498995755,10.0,247.52,247.41,2.8292]
[1732498995926,20.0,247.54,247.41,2.8292]
[1732498996128,20.0,247.51,247.42,8.22853396]
[1732498996735,10.0,247.54,247.43,2.829]
[1732498996943,10.0,247.54,247.44,23.776884]
[1732498997142,20.0,247.54,247.44,23.776884]
[1732498997855,20.0,247.54,247.43,23.776884]
[1732498998458,10.0,247.54,247.43,23.776884]
[1732498998757,20.0,247.54,247.43,23.776884]
[1732498999055,20.0,247.51,247.44,23.776884]
[1732499000941,20.0,247.51,247.44,26.605784]
[1732499003558,20.0,247.51,247.43,23.776884]
[1732499003736,20.0,247.49,247.42,23.776884]
[1732499003936,20.0,247.49,247.41,23.776884]
[1732499004138,20.0,247.49,247.39,23.776884]
[1732499004648,30.0,247.47,247.39,23.776884]
[1732499005039,20.0,247.47,247.39,23.776884]
[1732499005244,20.0,247.47,247.41,23.776884]
[1732499005739,20.0,247.48,247.41,23.776884]
[1732499006347,32.3553,247.51,247.43,23.776884]
[1732499006688,20.0,247.48,247.43,23.776884]
[1732499007043,22.3553,247.51,247.43,23.776884]
[1732499007848,22.3553,247.51,247.43,26.605884]
[1732499008048,10.0,247.56,247.45,23.776884]
[1732499008255,10.0,247.53,247.45,23.776884]
[1732499008457,20.0,247.53,247.45,23.776884]
[1732499008961,20.0,247.54,247.45,23.776884]
[1732499009145,20.0,247.53,247.47,23.776884]
[1732499009745,10.0,247.56,247.47,23.776884]
[1732499010063,12.12380649,247.71,247.46,11.05723396]
[1732499010064,20.0,247.62,247.52,23.776884]
[1732499010254,20.0,247.62,247.53,23.776884]
[1732499011150,10.0,247.66,247.58,32.00541796]
[1732499011353,10.0,247.67,247.59,32.00541796]
[1732499011539,10.0,247.68,247.59,32.00541796]
[1732499011864,10.0,247.68,247.54,8.22853396]
[1732499011865,10.0,247.67,247.54,8.22853396]
[1732499012047,10.0,247.67,247.55,8.22853396]
[1732499012550,10.0,247.67,247.56,23.776884]
[1732499013463,10.0,247.67,247.57,2.8274]
[1732499013652,10.0,247.67,247.58,23.776884]
[1732499014048,10.0,247.66,247.56,23.776884]
[1732499015566,20.0,247.64,247.56,26.604384]
[1732499016965,20.0,247.64,247.56,23.776884]
[1732499017160,22.0559,247.69,247.54,2.8277]
[1732499017161,40.0,247.63,247.54,23.776884]
[1732499017361,20.0,247.58,247.49,11.05683396]
[1732499017571,20.0,247.58,247.47,11.05703396]
[1732499019070,20.0,247.58,247.5,23.776884]
[1732499021068,20.0,247.57,247.48,23.776884]
[1732499022975,10.0,247.57,247.48,23.776884]
[1732499023173,20.0,247.56,247.48,23.776884]
[1732499024367,20.0,247.58,247.48,26.605284]
[1732499024874,20.0,247.56,247.48,26.605284]
[1732499026173,20.0,247.58,247.48,26.605284]
[1732499026769,30.0,247.58,247.48,26.605284]
[1732499026965,20.0,247.58,247.48,26.605284]
[1732499027174,20.0,247.63,247.5,23.776884]
[1732499027385,20.0,247.6,247.5,23.776884]
[1732499027558,20.0,247.63,247.5,23.776884]
[1732499027757,10.0,247.63,247.5,23.776884]
[1732499028154,20.0,247.65,247.52,26.604884]
[1732499028359,10.0,247.65,247.54,23.776884]
[1732499028555,10.0,247.67,247.58,5.25480548]
[1732499028776,42.0559,247.69,247.58,5.25480548]
[1732499029081,32.0559,247.69,247.59,23.776884]
[1732499029376,22.0559,247.69,247.61,23.776884]
[1732499029677,15.4861,247.69,247.61,26.603884]
[1732499031084,10.0,247.73,247.61,26.603884]
[1732499031466,10.0,247.72,247.61,26.603884]
[1732499031784,20.0,247.69,247.61,26.603884]
[1732499032563,20.0,247.69,247.64,23.776884]
[1732499032760,20.0,247.72,247.64,23.776884]
[1732499033165,10.0,247.77,247.64,31.97935908]
[1732499034187,10.0,247.78,247.64,31.97935908]
[1732499034382,10.0,247.78,247.65,2.8265]
[1732499034680,20.0,247.75,247.66,23.776884]
[1732499035081,20.0,247.76,247.66,23.776884]
[1732499035275,20.0,247.76,247.68,26.603084]
[1732499036379,20.0,247.76,247.68,23.776884]
[1732499036560,20.0,247.76,247.66,26.603184]
[1732499039684,20.0,247.76,247.67,8.20247508]
[1732499039871,20.0,247.8,247.72,23.776884]
[1732499040488,20.0,247.78,247.7,23.776884]
[1732499040690,20.0,247.8,247.7,23.776884]
[1732499041988,20.0,247.8,247.7,26.602784]
[1732499042483,10.0,247.83,247.7,26.602784]
[1732499042795,10.0,247.86,247.72,23.776884]
[1732499043091,10.0,247.84,247.72,23.776884]
[1732499043605,10.0,247.86,247.74,23.776884]
[1732499044082,16.1736,247.87,247.74,23.776884]
[1732499044790,10.0,247.86,247.74,23.776884]
[1732499045268,10.0,247.86,247.74,26.602284]
[1732499045269,20.0,247.83,247.74,26.602284]
[1732499045682,20.0,247.84,247.76,23.776884]
[1732499046189,20.0,247.84,247.77,8.20247508]
[1732499046493,20.0,247.87,247.78,23.776884]
[1732499046871,20.0,247.87,247.78,26.601884]
[1732499047075,25.9321,247.93,247.8,23.776884]
[1732499047286,10.0,247.9,247.8,23.776884]
[1732499047487,10.0,247.91,247.78,23.776884]
[1732499047488,10.0,247.88,247.78,23.776884]
[1732499047883,10.0,247.91,247.78,23.776884]
[1732499047884,10.0,247.9,247.78,23.776884]
[1732499048196,10.0,247.88,247.78,23.776884]
[1732499048868,20.0,247.87,247.79,23.776884]
[1732499049078,20.0,247.9,247.79,31.97935908]
[1732499050195,20.0,247.88,247.81,23.776884]
[1732499050792,20.0,247.9,247.81,23.776884]
[1732499050976,20.0,247.9,247.81,26.601584]
[1732499053094,20.0,247.9,247.81,31.8432894]
[1732499053784,20.0,247.9,247.81,26.601584]
[1732499053997,15.9321,247.93,247.77,7.0627]
[1732499053998,20.0,247.88,247.78,23.776884]
[1732499054498,20.0,247.88,247.78,29.0185894]
[1732499054790,20.0,247.9,247.78,29.0185894]
[1732499054992,15.9321,247.93,247.81,26.601584]
[1732499056296,20.0,247.91,247.81,31.8432894]
[1732499056597,20.0,247.95,247.85,23.776884]
[1732499056783,15.5114,247.99,247.85,23.776884]
[1732499056784,20.0,247.96,247.85,23.776884]
[1732499057803,20.0,247.96,247.84,26.601284]
[1732499058479,20.0,247.94,247.84,26.601284]
[1732499059298,20.0,247.92,247.81,5.2417054]
[1732499059479,20.0,247.9,247.79,5.2417054]
[1732499060581,20.0,247.9,247.77,5.2417054]
[1732499060783,20.0,247.86,247.75,5.2417054]
[1732499060988,20.0,247.86,247.79,5.2417054]
[1732499061186,20.0,247.91,247.79,5.2417054]
[1732499061391,20.0,247.9,247.79,5.2417054]
[1732499061697,20.0,247.9,247.78,5.2417054]
[1732499061889,20.0,247.9,247.79,23.776884]
[1732499062097,20.0,247.88,247.73,7.064]
[1732499062407,20.0,247.87,247.74,8.0672054]
[1732499062704,20.0,247.87,247.76,5.2417054]
[1732499062890,20.0,247.88,247.76,5.2417054]
[1732499063212,20.0,247.9,247.76,5.2417054]
[1732499063588,20.0,247.9,247.78,2.825]
[1732499064101,20.0,247.9,247.79,23.776884]
[1732499064694,20.0,247.9,247.77,23.776884]
[1732499065001,20.0,247.9,247.77,26.602084]
[1732499065981,20.0,247.9,247.79,23.776884]
[1732499066298,20.0,247.92,247.81,23.776884]
[1732499067209,20.0,247.92,247.83,23.776884]
[1732499067888,35.5114,247.99,247.83,23.776884]
[1732499068209,15.5114,247.99,247.85,23.776884]
[1732499068717,10.0,247.98,247.85,23.776884]
[1732499069201,10.0,247.98,247.85,26.600984]
[1732499069402,20.0,247.95,247.85,26.600984]
[1732499069698,20.0,247.96,247.85,26.600984]
[1732499069897,15.5114,247.99,247.87,23.776884]
[1732499071216,20.0,247.96,247.89,23.776884]
[1732499071388,10.0,248.05,247.91,23.776884]
[1732499072284,15.292,248.07,247.92,5.2417054]
[1732499072484,15.292,248.07,247.93,23.776884]
[1732499073106,15.292,248.07,247.93,26.600184]
[1732499073284,10.0,248.06,247.93,26.600184]
[1732499073486,10.0,248.04,247.86,20.0]
[1732499073696,10.0,248.02,247.88,23.776884]
[1732499073916,10.0,248.02,247.85,5.2417054]
[1732499074085,20.0,247.97,247.85,5.2417054]
[1732499074691,20.0,247.97,247.86,2.8241]
[1732499075992,20.0,248.01,247.86,2.8241]
[1732499076306,20.0,248.01,247.88,5.2417054]
[1732499076508,20.0,248.01,247.89,23.776884]
[1732499077297,20.0,248.03,247.91,23.776884]
[1732499078326,20.0,248.03,247.91,26.600384]
[1732499078808,20.0,248.04,247.91,34.78277311]
[1732499079111,20.0,248.03,247.91,34.78277311]
[1732499079519,15.292,248.07,247.91,34.78277311]
[1732499080596,10.0,248.05,247.91,23.776884]
[1732499080804,20.0,248.02,247.9,23.776884]
[1732499081730,20.0,248.02,247.92,23.776884]
[1732499082822,20.0,248.04,247.92,23.776884]
[1732499083008,20.0,248.03,247.94,23.776884]
[1732499084011,20.0,248.04,247.94,23.776884]
[1732499084912,20.0,248.04,247.95,23.776884]
[1732499085300,25.9408,248.13,247.98,23.776884]
[1732499085520,10.0,248.11,247.98,23.776884]
[1732499085726,25.9408,248.13,247.98,23.776884]
[1732499086228,15.9408,248.13,248.0,23.776884]
[1732499086519,15.9408,248.13,248.01,26.599284]
[1732499086718,10.0,248.15,248.01,26.599284]
[1732499087416,10.0,248.17,248.01,23.776884]
[1732499087628,20.0,248.17,248.01,23.776884]
[1732499087919,20.0,248.14,248.01,23.776884]
[1732499088416,20.0,248.14,248.01,26.599184]
[1732499089697,20.0,248.14,248.08,0.05827392]
[1732499089923,20.0,248.16,248.08,0.05827392]
[1732499090419,15.23,248.19,248.08,0.05827392]
[1732499090594,10.0,248.21,248.08,0.05827392]
[1732499090799,10.0,248.23,248.08,23.83515792]
[1732499091522,10.0,248.23,248.09,23.776884]
[1732499091721,10.0,248.21,248.08,0.05827392]
[1732499092120,10.0,248.18,248.08,0.05827392]
[1732499092833,20.0,248.15,248.08,0.05827392]
[1732499093123,20.0,248.19,248.08,0.05827392]
[1732499093305,20.0,248.17,248.08,0.05827392]
[1732499094115,20.0,248.15,248.08,0.05827392]
[1732499095109,19.5,248.15,248.08,0.05827392]
[1732499095911,10.0,248.19,248.08,0.05827392]
[1732499096326,10.0,248.2,248.08,0.05827392]
[1732499097326,20.0,248.17,248.08,0.05827392]
[1732499098427,30.0,248.2,248.08,0.05827392]
[1732499099016,20.0,248.15,248.08,0.05827392]
[1732499099615,10.0,248.21,248.08,0.05827392]
[1732499099936,20.0,248.19,248.08,0.05827392]
[1732499100439,20.0,248.18,248.08,0.05827392]
[1732499100915,20.0,248.21,248.08,0.05827392]
[1732499101127,20.0,248.16,248.08,0.05827392]
[1732499101712,20.0,248.28,248.08,8.1105854]
[1732499101909,10.0,248.28,248.11,23.776884]
[1732499102507,10.0,248.31,248.12,5.23071148]
[1732499102711,10.0,248.31,248.15,23.776884]
[1732499102912,22.8793,248.33,248.17,23.776884]
[1732499103232,16.3059,248.33,248.19,5.23071148]
[1732499103431,16.3059,248.33,248.2,23.776884]
[1732499103927,16.3059,248.33,248.18,23.776884]
[1732499104270,16.3059,248.33,248.17,29.00759548]
[1732499104442,16.3059,248.33,248.17,23.776884]
[1732499104644,10.0,248.37,248.2,23.776884]
[1732499105135,10.0,248.37,248.2,26.597084]
[1732499105319,10.0,248.37,248.2,23.776884]
[1732499105922,10.0,248.37,248.2,26.597084]
[1732499106232,20.0,248.34,248.2,26.597084]
[1732499107131,30.0,248.34,248.17,8.16303883]
[1732499107330,6.199,248.39,248.14,14.5422]
[1732499107331,20.0,248.29,248.14,14.5422]
[1732499107653,6.199,248.39,248.1,6.4171]
[1732499107654,10.0,248.25,248.1,6.4171]
[1732499107941,20.0,248.22,248.1,6.4171]
[1732499108519,6.6609,248.27,248.1,6.4171]
[1732499108520,20.0,248.24,248.1,6.4171]
[1732499108717,20.0,248.23,248.1,6.4171]
[1732499109326,20.0,248.24,248.11,23.776884]
[1732499109729,20.0,248.21,248.11,23.776884]
[1732499110749,20.0,248.18,248.08,0.05827392]
[1732499111045,20.0,248.1,248.08,0.05827392]
[1732499111425,20.0,248.09,248.08,0.05827392]
[1732499112955,20.0,248.16,248.08,0.05827392]
[1732499113255,10.0,248.17,248.08,0.05827392]
[1732499113434,25.4626,248.19,248.08,0.05827392]
[1732499113955,15.4626,248.19,248.08,0.05827392]
[1732499114455,16.625,248.26,248.09,23.776884]
[1732499114656,10.0,248.32,248.13,23.776884]
[1732499114834,20.0,248.32,248.13,23.776884]
[1732499115026,10.0,248.28,248.08,11.04291275]
[1732499115233,10.0,248.24,248.08,0.05827392]
[1732499115451,10.0,248.23,248.08,0.05827392]
[1732499115660,10.0,248.21,248.08,0.05827392]
[1732499115827,20.0,248.18,248.08,0.05827392]
[1732499116649,20.0,248.16,248.08,0.05827392]
[1732499117464,20.0,248.19,248.08,0.05827392]
[1732499117830,20.0,248.2,248.08,0.05827392]
[1732499118031,136.5,248.23,248.09,23.776884]
[1732499118246,136.5,248.28,248.1,8.16303883]
[1732499118431,146.5,248.29,248.11,23.776884]
[1732499118629,10.0,248.29,248.11,23.776884]
[1732499119039,20.0,248.29,248.11,23.776884]
[1732499119559,20.0,248.29,248.18,0.05827392]
[1732499119852,10.0,248.26,248.18,0.05827392]
[1732499120054,10.0,248.25,248.18,0.05827392]
[1732499120263,10.0,248.22,248.18,0.05827392]
[1732499120439,20.0,248.19,248.18,0.05827392]
[1732499122432,16.0952,248.27,248.18,0.05827392]
[1732499122650,6.0952,248.27,248.18,0.05827392]
[1732499122835,136.5,248.29,248.18,0.05827392]
[1732499123141,15.2859,248.3,248.18,0.05827392]
[1732499124251,16.0952,248.33,248.18,0.05827392]
[1732499124648,16.0952,248.33,248.18,14.60047392]
[1732499124824,16.0952,248.33,248.19,23.776884]
[1732499125224,20.0,248.3,248.19,23.776884]
[1732499125429,136.5,248.35,248.19,23.776884]
[1732499126429,146.5,248.35,248.19,23.776884]
[1732499126629,136.5,248.35,248.19,23.776884]
[1732499126829,20.0,248.32,248.19,23.776884]
[1732499128431,136.5,248.35,248.19,34.76022283]
[1732499128635,15.9587,248.36,248.19,34.76022283]
[1732499129150,6.3025,248.39,248.22,23.776884]
[1732499129451,146.5,248.4,248.22,23.776884]
[1732499129452,10.0,248.4,248.22,23.776884]
[1732499129655,10.0,248.4,248.23,6.1947]
[1732499129954,10.0,248.4,248.24,23.776884]
[1732499130749,152.5579,248.42,248.24,23.776884]
[1732499130959,20.0,248.37,248.24,23.776884]
[1732499131846,20.0,248.37,248.24,26.596684]
[1732499132242,30.0,248.4,248.24,26.596684]
[1732499132459,30.0,248.4,248.24,23.776884]
[1732499133957,11.26751543,248.52,248.27,23.776884]
[1732499134162,10.0,248.49,248.37,0.05827392]
[1732499134336,26.3744,248.48,248.37,0.05827392]
[1732499135043,16.3744,248.48,248.37,0.05827392]
[1732499135438,20.0,248.45,248.37,0.05827392]
[1732499138641,20.0,248.44,248.37,0.05827392]
[1732499139160,20.0,248.42,248.37,0.05827392]
[1732499139848,20.0,248.4,248.37,0.05827392]
[1732499143337,10.0,248.45,248.37,0.05827392]
[1732499143338,20.0,248.42,248.37,0.05827392]
[1732499143742,136.5,248.46,248.37,0.05827392]
[1732499144757,142.8102,248.53,248.37,23.83515792]
[1732499145468,10.0,248.51,248.37,0.05827392]
[1732499145767,20.0,248.49,248.37,0.05827392]
[1732499146341,20.0,248.49,248.37,23.83515792]
[1732499147757,20.0,248.48,248.37,23.83515792]
[1732499149468,19.94172608,248.48,248.37,23.776884]
[1732499149852,10.0,248.51,248.37,23.776884]
[1732499151066,136.5,248.52,248.37,23.776884]
[1732499151479,20.0,248.49,248.37,23.776884]
[1732499152654,20.0,248.49,248.36,14.5422]
[1732499153148,20.0,248.48,248.36,14.5422]
[1732499153751,20.0,248.49,248.36,14.5422]
[1732499154665,20.0,248.48,248.36,14.5422]
[1732499155671,20.0,248.47,248.36,14.5422]
[1732499155971,20.0,248.47,248.34,6.6374]
[1732499156169,10.0,248.39,248.23,14.5422]
[1732499156374,20.0,248.33,248.23,14.5422]
[1732499156565,20.0,248.32,248.16,6.3537]
[1732499156798,20.0,248.31,248.16,6.3537]
[1732499157953,20.0,248.31,248.17,23.776884]
[1732499159078,20.0,248.36,248.18,14.5422]
[1732499159253,20.0,248.36,248.19,23.776884]
[1732499159869,136.5,248.39,248.2,8.16303883]
[1732499160069,136.5,248.42,248.19,31.93992283]
[1732499160255,10.0,248.41,248.19,23.776884]
[1732499160461,136.5,248.42,248.19,23.776884]
[1732499160462,136.5,248.42,248.19,31.93992283]
[1732499160682,136.5,248.42,248.19,34.76022283]
[1732499161178,20.0,248.35,248.19,23.776884]
[1732499161772,20.0,248.36,248.19,23.776884]
[1732499162759,20.0,248.37,248.19,23.776884]
[1732499162966,20.0,248.38,248.22,31.93992283]
[1732499163156,26.0039,248.45,248.25,23.776884]
[1732499163157,136.5,248.44,248.25,23.776884]
[1732499163356,152.5039,248.45,248.25,23.776884]
[1732499164261,152.5039,248.45,248.24,23.776884]
[1732499164579,20.0,248.42,248.24,23.776884]
[1732499164784,20.0,248.41,248.24,23.776884]
[1732499165362,20.0,248.42,248.24,31.93992283]
[1732499165578,20.0,248.42,248.24,34.75972283]
[1732499165888,20.0,248.42,248.28,23.776884]
[1732499166481,20.0,248.47,248.28,23.776884]
[1732499166694,20.0,248.45,248.23,20.7845]
[1732499166981,20.0,248.43,248.24,23.776884]
[1732499167478,20.0,248.44,248.26,23.776884]
[1732499168456,20.0,248.4,248.26,23.776884]
[1732499169271,20.0,248.4,248.28,23.776884]
[1732499169481,20.0,248.46,248.3,23.776884]
[1732499169790,2.93991464,248.45,248.3,23.776884]
[1732499169990,2.93991464,248.44,248.3,23.776884]
[1732499170284,136.5,248.48,248.3,23.776884]
[1732499170466,2.9400732,248.47,248.3,23.776884]
[1732499171087,20.0,248.45,248.3,23.776884]
[1732499171266,2.9400732,248.44,248.3,23.776884]
[1732499171882,2.94139195,248.43,248.3,23.776884]
[1732499172093,2.94139195,248.42,248.3,23.776884]
[1732499172267,20.0,248.45,248.3,23.776884]
[1732499172587,2.94204506,248.44,248.3,23.776884]
[1732499174293,22.94204506,248.44,248.3,23.776884]
[1732499174489,20.0,248.41,248.3,23.776884]
[1732499175162,20.0,248.43,248.3,23.776884]
[1732499175362,2.94524624,248.42,248.3,23.776884]
[1732499176191,2.94524624,248.42,248.31,6.0136]
[1732499176490,20.0,248.43,248.32,23.776884]
[1732499177193,20.0,248.43,248.32,26.595784]
[1732499177378,20.0,248.43,248.32,23.776884]